fUSD/lending_fUSD_20240212
["ID","MTS","AMOUNT","RATE_DAILY","PERIOD"]
[313788849,1707724292364,-868.66,0.00024759,2]
[313788850,1707724292373,-500.0,0.00024759,2]
[313788851,1707724292383,-500.0,0.00024759,2]
[313788852,1707724292393,-500.0,0.00024759,2]
[313788853,1707724292403,-1657.54,0.00024759,2]
[313788854,1707724292412,-500.0,0.00024759,2]
[313788855,1707724292426,-500.0,0.00024759,2]
[313788856,1707724292436,-500.0,0.00024759,2]
[313788857,1707724292446,-937.0,0.00024759,2]
[313788858,1707724292456,-500.0,0.00024759,2]
[313788859,1707724292466,-500.0,0.00024759,2]
[313788860,1707724292476,-836.61,0.00024759,2]
[313788861,1707724292487,-789.02,0.00024759,2]
[313788862,1707724292498,-500.0,0.00024759,2]
[313788863,1707724292508,-500.0,0.00024759,2]
[313788864,1707724292520,-500.0,0.00024759,2]
[313788865,1707724292529,-741.07,0.00024759,2]
[313788866,1707724292540,-702.48,0.00024759,2]
[313788867,1707724292550,-500.0,0.00024759,2]
[313788868,1707724292560,-1093.1,0.00024759,2]
[313788869,1707724292569,-500.0,0.00024759,2]
[313788870,1707724292579,-1102.3,0.00024759,2]
[313788871,1707724292589,-500.0,0.00024759,2]
[313788872,1707724292599,-500.0,0.00024759,2]
[313788873,1707724292610,-1010.79,0.00024759,2]
[313788874,1707724292620,-500.0,0.00024759,2]
[313788875,1707724292630,-500.0,0.00024759,2]
[313788876,1707724292641,-500.0,0.00024759,2]
[313788877,1707724292651,-1081.23,0.00024759,2]
[313788878,1707724292661,-500.0,0.00024759,2]
[313788879,1707724292672,-858.73,0.00024759,2]
[313788880,1707724292682,-1022.22,0.00024759,2]
[313788881,1707724292693,-207.9448264,0.00024759,2]
[313788882,1707724292703,-968.51,0.00024759,2]
[313788883,1707724292713,-500.0,0.00024759,2]
[313788884,1707724292723,-1029.72,0.00024759,2]
[313788885,1707724292734,-905.03,0.00024759,2]
[313788886,1707724292744,-272.15524715,0.00024759,2]
[313788887,1707724292754,-500.0,0.00024759,2]
[313788888,1707724292764,-500.0,0.00024759,2]
[313788889,1707724292774,-500.0,0.00024759,2]
[313788890,1707724292784,-565.78,0.00024759,2]
[313788891,1707724292794,-758.66,0.00024759,2]
[313788892,1707724292805,-500.0,0.00024759,2]
[313788893,1707724292815,-500.0,0.00024759,2]
[313788894,1707724292826,-500.0,0.00024759,2]
[313788895,1707724292836,-985.25,0.00024759,2]
[313788896,1707724292846,-637.04,0.00024759,2]
[313788897,1707724292856,-1101.79,0.00024759,2]
[313788898,1707724292867,-560.46081642,0.00024759,2]
[313788899,1707724292877,-564.71,0.00024759,2]
[313788900,1707724292888,-501.05,0.00024759,2]
[313788901,1707724292898,-500.0,0.00024759,2]
[313788902,1707724292908,-500.0,0.00024759,2]
[313788903,1707724292918,-500.0,0.00024759,2]
[313788904,1707724292929,-500.0,0.00024759,2]
[313788905,1707724292940,-500.0,0.00024759,2]
[313788906,1707724292950,-1934.66,0.00024759,2]
[313788907,1707724292960,-500.0,0.00024759,2]
[313788908,1707724292971,-500.0,0.00024759,2]
[313788909,1707724292981,-500.0,0.00024759,2]
[313788910,1707724292992,-740.57,0.00024759,2]
[313788911,1707724293003,-500.0,0.00024759,2]
[313788912,1707724293013,-644.41,0.00024759,2]
[313788913,1707724293023,-500.0,0.00024759,2]
[313788914,1707724293034,-970.49,0.00024759,2]
[313788915,1707724293045,-500.0,0.00024759,2]
[313788916,1707724293055,-500.0,0.00024759,2]
[313788917,1707724293065,-500.0,0.00024759,2]
[313788918,1707724293256,-500.0,0.00024759,2]
[313788919,1707724293266,-500.0,0.00024759,2]
[313788920,1707724293277,-500.0,0.00024759,2]
[313788921,1707724293288,-956.03,0.00024759,2]
[313788922,1707724293298,-500.0,0.00024759,2]
[313788923,1707724293309,-500.0,0.00024759,2]
[313788924,1707724293320,-500.0,0.00024759,2]
[313788925,1707724293330,-2083.73,0.00024759,2]
[313788926,1707724293340,-500.0,0.00024759,2]
[313788927,1707724293350,-500.0,0.00024759,2]
[313788928,1707724293361,-500.0,0.00024759,2]
[313788929,1707724293371,-913.37,0.00024759,2]
[313788930,1707724293381,-500.0,0.00024759,2]
[313788931,1707724293391,-500.0,0.00024759,2]
[313788932,1707724293402,-576.68,0.00024759,2]
[313788933,1707724293413,-537.8,0.00024759,2]
[313788934,1707724293424,-500.0,0.00024759,2]
[313788935,1707724293436,-529.68,0.00024759,2]
[313788936,1707724293446,-779.11,0.00024759,2]
[313788937,1707724293457,-984.19,0.00024759,2]
[313788938,1707724293467,-228.49041497,0.00024759,2]
[313788939,1707724293478,-154.32088293,0.00024759,2]
[313788940,1707724293489,-514.18,0.00024759,2]
[313788941,1707724293499,-532.66997077,0.00024759,2]
[313788942,1707724293510,-500.0,0.00024759,2]
[313788943,1707724293522,-1281.17,0.00024759,2]
[313788944,1707724293532,-500.0,0.00024759,2]
[313788945,1707724293543,-500.0,0.00024759,2]
[313788946,1707724293554,-518.38,0.00024759,2]
[313788947,1707724293564,-500.0,0.00024759,2]
[313788948,1707724293575,-500.0,0.00024759,2]
[313788949,1707724293587,-500.0,0.00024759,2]
[313788950,1707724293597,-500.0,0.00024759,2]
[313788951,1707724293608,-1010.51,0.00024759,2]
[313788952,1707724293619,-617.28,0.00024759,2]
[313788953,1707724293630,-523.04,0.00024759,2]
[313788954,1707724293641,-500.0,0.00024759,2]
[313788955,1707724293652,-1143.13,0.00024759,2]
[313788956,1707724293663,-500.0,0.00024759,2]
[313788957,1707724293674,-531.64,0.00024759,2]
[313788958,1707724293684,-538.42,0.00024759,2]
[313788959,1707724293696,-500.0,0.00024759,2]
[313788960,1707724293706,-541.44,0.00024759,2]
[313788961,1707724293716,-1417.01,0.00024759,2]
[313788962,1707724293726,-630.75,0.00024759,2]
[313788963,1707724293737,-500.0,0.00024759,2]
[313788964,1707724293748,-611.91,0.00024759,2]
[313788965,1707724293758,-500.0,0.00024759,2]
[313788966,1707724293768,-500.0,0.00024759,2]
[313788967,1707724293778,-737.84,0.00024759,2]
[313788968,1707724293788,-509.88,0.00024759,2]
[313788969,1707724293798,-500.0,0.00024759,2]
[313788970,1707724293809,-500.0,0.00024759,2]
[313788971,1707724293819,-500.0,0.00024759,2]
[313788972,1707724293830,-787.74,0.00024759,2]
[313788973,1707724293840,-625.95,0.00024759,2]
[313788974,1707724293851,-500.0,0.00024759,2]
[313788975,1707724293860,-531.17,0.00024759,2]
[313788976,1707724293871,-536.58106359,0.00024759,2]
[313788977,1707724293881,-567.65,0.00024759,2]
[313788978,1707724293891,-500.0,0.00024759,2]
[313788979,1707724293902,-850.14,0.00024759,2]
[313788980,1707724293912,-500.0,0.0002476,2]
[313788981,1707724293922,-500.0,0.0002476,2]
[313788982,1707724293933,-834.63,0.0002476,2]
[313788983,1707724293943,-500.0,0.0002476,2]
[313788984,1707724293954,-538.57,0.0002476,2]
[313788985,1707724293965,-561.22,0.0002476,2]
[313788986,1707724293975,-923.84,0.0002476,2]
[313788987,1707724293987,-870.36,0.0002476,2]
[313788988,1707724293998,-500.0,0.0002476,2]
[313788989,1707724294009,-723.82,0.0002476,2]
[313788990,1707724294019,-500.0,0.0002476,2]
[313788991,1707724294030,-19975.31737627,0.0002479,2]
[313788992,1707724294040,-19975.31737624,0.0002479,2]
[313788993,1707724294050,-19975.31737624,0.0002479,2]
[313788994,1707724294061,-19975.31737624,0.0002479,2]
[313788995,1707724294071,-19975.31737624,0.0002479,2]
[313788996,1707724294082,-19975.31737624,0.0002479,2]
[313788997,1707724294092,-19975.31737624,0.0002479,2]
[313788998,1707724294104,-19975.31737624,0.0002479,2]
[313788999,1707724294114,-19975.31737624,0.0002479,2]
[313789000,1707724294124,-856.22158625,0.00024818,3]
[313789001,1707724294134,-159.3,0.00024893,2]
[313789002,1707724294145,-19975.31737624,0.000249,2]
[313789003,1707724294155,-500.0,0.00024905,2]
[313789004,1707724294165,-574.16,0.00024905,2]
[313789005,1707724294175,-500.0,0.00024905,2]
[313789006,1707724294185,-500.0,0.00024905,2]
[313789007,1707724294195,-500.0,0.00024905,2]
[313789008,1707724294205,-567.92,0.00024905,2]
[313789009,1707724294215,-500.0,0.00024905,2]
[313789010,1707724294225,-732.18,0.00024905,2]
[313789011,1707724294235,-500.0,0.00024905,2]
[313789012,1707724294245,-196.28234066,0.00024905,2]
[313789013,1707724294256,-500.0,0.00024905,2]
[313789014,1707724294266,-500.0,0.00024905,2]
[313789015,1707724294277,-540.94,0.00024905,2]
[313789016,1707724294287,-500.0,0.00024905,2]
[313789017,1707724294298,-612.65,0.00024905,2]
[313789018,1707724294308,-150.0,0.00024999,2]
[313789019,1707724294318,-150.0,0.00024999,2]
[313789020,1707724294329,-150.0,0.00024999,2]
[313789021,1707724294340,-150.0,0.00024999,2]
[313789022,1707724294352,-150.0,0.00024999,2]
[313789023,1707724294362,-150.0,0.00024999,2]
[313789024,1707724294372,-193.52754437,0.00024999,2]
[313789025,1707724294383,-168.0547895,0.00025,2]
[313789026,1707724294393,-159.45266187,0.00025,2]
[313789027,1707724294403,-1591.80252541,0.00025,2]
[313789028,1707724294414,-946.10396075,0.00025,2]
[313789029,1707724294427,-663.32890122,0.00025,7]
[313789030,1707724294437,-305.09660322,0.00025,2]
[313789031,1707724294447,-928.12582747,0.00025,2]
[313789032,1707724294458,-1256.25370781,0.00025,2]
[313789033,1707724294469,-1500.0,0.00025,2]
[313789034,1707724294479,-1500.0,0.00025,2]
[313789035,1707724294490,-1500.0,0.00025,2]
[313789036,1707724294499,-1500.0,0.00025,2]
[313789037,1707724294512,-1500.0,0.00025,2]
[313789038,1707724294522,-1500.0,0.00025,2]
[313789039,1707724294532,-1500.0,0.00025,2]
[313789040,1707724294542,-1500.0,0.00025,2]
[313789041,1707724294552,-1500.0,0.00025,2]
[313789042,1707724294562,-1501.96,0.00025,2]
[313789043,1707724294572,-3502348.53868856,0.00025,2]
[313789044,1707724294582,-256.8,0.00025,2]
[313789045,1707724294592,-20535.16837484,0.00025,2]
[313789046,1707724294604,-750.0,0.00025,3]
[313789047,1707724294614,-380.79,0.00025,2]
[313789048,1707724294624,-3000.0,0.00025,2]
[313789049,1707724294635,-3000.0,0.00025,2]
[313789050,1707724294645,-4418.28284,0.0002501,2]
[313789051,1707724294655,-418.26,0.00025017,2]
[313789052,1707724294665,-418.26,0.00025017,2]
[313789053,1707724294675,-418.37,0.00025017,2]
[313789054,1707724294685,-1180.52,0.00025027,2]
[313789055,1707724294695,-1896.25,0.00025027,2]
[313789056,1707724294705,-847.31,0.00025027,2]
[313789057,1707724294715,-534.72,0.00025027,2]
[313789058,1707724294725,-500.0,0.00025027,2]
[313789059,1707724294735,-500.0,0.00025027,2]
[313789060,1707724294744,-1982.34,0.00025028,2]
[313789061,1707724294755,-500.0,0.00025028,2]
[313789062,1707724294766,-2165.45,0.00025028,2]
[313789063,1707724294776,-500.0,0.00025028,2]
[313789064,1707724294786,-621.75,0.00025028,2]
[313789065,1707724294796,-3012.86,0.00025028,2]
[313789066,1707724294807,-2263.16,0.00025028,2]
[313789067,1707724294817,-797.7,0.00025028,2]
[313789068,1707724294827,-500.0,0.00025028,2]
[313789069,1707724294838,-698.6,0.00025028,2]
[313789070,1707724294848,-500.0,0.00025028,2]
[313789071,1707724294859,-500.0,0.00025028,2]
[313789072,1707724294870,-12125.24,0.00025028,2]
[313789073,1707724294880,-1922.52,0.00025028,2]
[313789074,1707724294890,-500.0,0.00025028,2]
[313789075,1707724294901,-500.0,0.00025028,2]
[313789076,1707724294911,-2475.59,0.00025028,2]
[313789077,1707724294921,-500.0,0.00025028,2]
[313789078,1707724294932,-500.0,0.00025028,2]
[313789079,1707724294942,-500.0,0.00025028,2]
[313789080,1707724294952,-500.0,0.00025028,2]
[313789081,1707724294963,-500.0,0.00025028,2]
[313789082,1707724294973,-1975.23,0.00025028,2]
[313789083,1707724294983,-500.0,0.00025028,2]
[313789084,1707724294995,-617.92,0.0002503,2]
[313789085,1707724295005,-500.0,0.0002503,2]
[313789086,1707724295015,-702.45,0.0002503,2]
[313789087,1707724295026,-500.0,0.0002503,2]
[313789088,1707724295037,-500.0,0.0002503,2]
[313789089,1707724295047,-500.0,0.0002503,2]
[313789090,1707724295058,-500.0,0.0002503,2]
[313789091,1707724295068,-500.0,0.0002503,2]
[313789092,1707724295079,-500.0,0.0002503,2]
[313789093,1707724295091,-3082.76,0.0002503,2]
[313789094,1707724295101,-595.48,0.0002503,2]
[313789095,1707724295112,-1116.74,0.0002503,2]
[313789096,1707724295123,-500.0,0.0002503,2]
[313789097,1707724295133,-500.0,0.0002503,2]
[313789098,1707724295143,-580.47,0.0002503,2]
[313789099,1707724295155,-5464.12,0.0002503,2]
[313789100,1707724295166,-500.0,0.0002503,2]
[313789101,1707724295177,-500.0,0.0002503,2]
[313789102,1707724295187,-500.0,0.0002503,2]
[313789103,1707724295198,-500.0,0.0002503,2]
[313789104,1707724295209,-5570.51,0.0002503,2]
[313789105,1707724295221,-1834.77,0.0002503,2]
[313789106,1707724295232,-580.52,0.0002503,2]
[313789107,1707724295243,-20177.86,0.0002503,2]
[313789108,1707724295253,-373.91577436,0.0002503,2]
[313789109,1707724295264,-500.0,0.0002503,2]
[313789110,1707724295275,-500.0,0.0002503,2]
[313789111,1707724295286,-593.8934976,0.0002503,2]
[313789112,1707724295297,-1991.86,0.0002503,2]
[313789113,1707724295307,-500.0,0.0002503,2]
[313789114,1707724295318,-630.66,0.0002503,2]
[313789115,1707724295329,-511.3,0.0002503,2]
[313789116,1707724295339,-639.00511006,0.0002503,2]
[313789117,1707724295350,-500.0,0.0002503,2]
[313789118,1707724295360,-6710.69,0.0002503,2]
[313789119,1707724295370,-500.0,0.0002503,2]
[313789120,1707724295380,-297.76377998,0.0002503,2]
[313789121,1707724295391,-823.26,0.0002503,2]
[313789122,1707724295401,-500.0,0.0002503,2]
[313789123,1707724295412,-587.44,0.0002503,2]
[313789124,1707724295425,-500.0,0.0002503,2]
[313789125,1707724295436,-500.0,0.0002503,2]
[313789126,1707724295447,-500.0,0.0002503,2]
[313789127,1707724295457,-828.24,0.0002503,2]
[313789128,1707724295467,-1721.35,0.0002503,2]
[313789129,1707724295477,-500.0,0.0002503,2]
[313789130,1707724295487,-500.0,0.0002503,2]
[313789131,1707724295497,-3534.38,0.0002503,2]
[313789132,1707724295508,-500.0,0.0002503,2]
[313789133,1707724295520,-335.38846189,0.0002503,2]
[313789134,1707724295530,-2375.35,0.0002503,2]
[313789135,1707724295541,-500.0,0.0002503,2]
[313789136,1707724295551,-500.0,0.0002503,2]
[313789137,1707724295561,-1540.99,0.0002503,2]
[313789138,1707724295572,-500.0,0.0002503,2]
[313789139,1707724295582,-500.0,0.0002503,2]
[313789140,1707724295593,-500.0,0.0002503,2]
[313789141,1707724295604,-1022.74,0.0002503,2]
[313789142,1707724295615,-500.0,0.0002503,2]
[313789143,1707724295627,-500.0,0.0002503,2]
[313789144,1707724295637,-620.17028871,0.0002503,2]
[313789145,1707724295648,-500.0,0.0002503,2]
[313789146,1707724295659,-500.0,0.0002503,2]
[313789147,1707724295670,-500.0,0.0002503,2]
[313789148,1707724295681,-1895.77,0.0002503,2]
[313789149,1707724295693,-620.86,0.0002503,2]
[313789150,1707724295703,-500.0,0.0002503,2]
[313789151,1707724295714,-1807.44,0.0002503,2]
[313789152,1707724295724,-921.33,0.0002503,2]
[313789153,1707724295735,-2338.23,0.0002503,2]
[313789154,1707724295746,-3233.45,0.0002503,2]
[313789155,1707724295757,-4525.21,0.0002503,2]
[313789156,1707724295768,-3688.06,0.0002503,2]
[313789157,1707724295778,-3591.61,0.0002503,2]
[313789158,1707724295789,-624.13,0.0002503,2]
[313789159,1707724295799,-1805.38,0.0002503,2]
[313789160,1707724295810,-591.5,0.0002503,2]
[313789161,1707724295820,-1201.85,0.0002503,2]
[313789162,1707724295830,-1176.56,0.0002503,2]
[313789163,1707724295840,-4608.4,0.0002503,2]
[313789164,1707724295851,-706.15,0.00025031,2]
[313789165,1707724295861,-769.24,0.00025031,2]
[313789166,1707724295872,-669.16,0.00025031,2]
[313789167,1707724295882,-537.83,0.00025031,2]
[313789168,1707724295892,-523.17275937,0.00025031,2]
[313789169,1707724295903,-565.89,0.00025031,2]
[313789170,1707724295913,-793.91,0.00025031,2]
[313789171,1707724295924,-1052.88,0.00025031,2]
[313789172,1707724295934,-687.92,0.00025031,2]
[313789173,1707724295945,-500.0,0.00025031,2]
[313789174,1707724295956,-890.74,0.00025031,2]
[313789175,1707724295967,-624.91,0.00025031,2]
[313789176,1707724295977,-815.41,0.00025031,2]
[313789177,1707724295988,-583.58,0.00025031,2]
[313789178,1707724295997,-500.0,0.00025031,2]
[313789179,1707724296007,-937.88,0.00025031,2]
[313789180,1707724296017,-713.39,0.00025031,2]
[313789181,1707724296028,-677.31,0.00025031,2]
[313789182,1707724296038,-500.0,0.00025031,2]
[313789183,1707724296048,-719.29,0.00025031,2]
[313789184,1707724296058,-1300.69,0.00025031,2]
[313789185,1707724296227,-1183.66,0.00025031,2]
[313789186,1707724296238,-587.65,0.00025031,2]
[313789187,1707724296250,-888.66,0.00025031,2]
[313789188,1707724296260,-887.34,0.00025031,2]
[313789189,1707724296270,-1482.85,0.00025031,2]
[313789190,1707724296281,-672.72,0.00025031,2]
[313789191,1707724296291,-507.87,0.00025031,2]
[313789192,1707724296301,-783.44,0.00025031,2]
[313789193,1707724296312,-504.77,0.00025031,2]
[313789194,1707724296322,-500.0,0.00025031,2]
[313789195,1707724296333,-751.88,0.00025031,2]
[313789196,1707724296344,-215.27885617,0.00025031,2]
[313789197,1707724296354,-500.0,0.00025031,2]
[313789198,1707724296364,-500.0,0.00025031,2]
[313789199,1707724296376,-1243.18,0.00025031,2]
[313789200,1707724296386,-974.3,0.00025031,2]
[313789201,1707724296397,-500.0,0.00025031,2]
[313789202,1707724296409,-7827.18,0.00025031,2]
[313789203,1707724296420,-500.0,0.00025031,2]
[313789204,1707724296434,-560.10419399,0.00025031,2]
[313789205,1707724296445,-967.31,0.00025031,2]
[313789206,1707724296456,-2173.97,0.00025031,2]
[313789207,1707724296466,-500.0,0.00025031,2]
[313789208,1707724296477,-1551.42,0.00025031,2]
[313789209,1707724296488,-1390.31,0.00025031,2]
[313789210,1707724296499,-537.36,0.00025031,2]
[313789211,1707724296510,-500.0,0.00025031,2]
[313789212,1707724296523,-974.61,0.00025031,2]
[313789213,1707724296534,-2945.14,0.00025031,2]
[313789214,1707724296545,-500.0,0.00025031,2]
[313789215,1707724296555,-1019.27,0.00025031,2]
[313789216,1707724296566,-806.3,0.00025031,2]
[313789217,1707724296577,-570.23,0.00025031,2]
[313789218,1707724296587,-500.0,0.00025031,2]
[313789219,1707724296598,-922.68,0.00025031,2]
[313789220,1707724296609,-587.74,0.00025031,2]
[313789221,1707724296619,-1002.52,0.00025031,2]
[313789222,1707724296629,-1154.55,0.00025031,2]
[313789223,1707724296640,-880.38,0.00025031,2]
[313789224,1707724296650,-1257.42,0.00025031,2]
[313789225,1707724296661,-719.41,0.00025031,2]
[313789226,1707724296672,-744.24,0.00025031,2]
[313789227,1707724296684,-500.0,0.00025031,2]
[313789228,1707724296695,-506.58,0.00025031,2]
[313789229,1707724296706,-655.13,0.00025031,2]
[313789230,1707724296717,-1365.54,0.00025031,2]
[313789231,1707724296728,-500.0,0.00025031,2]
[313789232,1707724296739,-1350.62,0.00025031,2]
[313789233,1707724296750,-772.77,0.00025031,2]
[313789234,1707724296760,-2935.99,0.00025031,2]
[313789235,1707724296771,-500.0,0.00025031,2]
[313789236,1707724296782,-500.0,0.00025031,2]
[313789237,1707724296792,-500.0,0.00025031,2]
[313789238,1707724296802,-1330.37,0.00025031,2]
[313789239,1707724296814,-1466.7,0.00025031,2]
[313789240,1707724296824,-500.0,0.00025031,2]
[313789241,1707724296834,-992.91,0.00025031,2]
[313789242,1707724296845,-3717.73,0.00025031,2]
[313789243,1707724296856,-4577.04,0.00025031,2]
[313789244,1707724296867,-500.0,0.00025031,2]
[313789245,1707724296878,-3566.79,0.00025031,2]
[313789246,1707724296888,-2751.21,0.00025031,2]
[313789247,1707724296898,-603.29,0.00025031,2]
[313789248,1707724296909,-1093.06,0.00025031,2]
[313789249,1707724296919,-2597.39,0.00025031,2]
[313789250,1707724296929,-1658.55,0.00025031,2]
[313789251,1707724296939,-754.43,0.00025031,2]
[313789252,1707724296950,-1509.11,0.00025031,2]
[313789253,1707724296961,-933.4,0.00025031,2]
[313789254,1707724296971,-500.0,0.00025031,2]
[313789255,1707724296981,-1039.67,0.00025031,2]
[313789256,1707724296991,-558.4,0.00025031,2]
[313789257,1707724297001,-581.28,0.00025031,2]
[313789258,1707724297012,-2115.36,0.00025031,2]
[313789259,1707724297022,-1608.32,0.00025031,2]
[313789260,1707724297033,-1871.04,0.00025031,2]
[313789261,1707724297043,-535.09,0.00025031,2]
[313789262,1707724297054,-13505.82,0.00025031,2]
[313789263,1707724297065,-500.0,0.00025031,2]
[313789264,1707724297076,-521.2,0.00025031,2]
[313789265,1707724297087,-1098.36,0.00025031,2]
[313789266,1707724297097,-2160.67,0.00025031,2]
[313789267,1707724297108,-1598.78,0.00025031,2]
[313789268,1707724297119,-500.0,0.00025031,2]
[313789269,1707724297129,-312.96458857,0.00025031,2]
[313789270,1707724297139,-500.0,0.00025031,2]
[313789271,1707724297149,-728.66,0.00025031,2]
[313789272,1707724297160,-3742.33,0.00025031,2]
[313789273,1707724297170,-500.0,0.00025031,2]
[313789274,1707724297181,-708.87,0.00025031,2]
[313789275,1707724297192,-500.0,0.00025031,2]
[313789276,1707724297201,-500.0,0.00025031,2]
[313789277,1707724297212,-612.51,0.00025031,2]
[313789278,1707724297221,-500.0,0.00025033,2]
[313789279,1707724297232,-500.0,0.00025033,2]
[313789280,1707724297243,-500.0,0.00025033,2]
[313789281,1707724297252,-500.0,0.00025033,2]
[313789282,1707724297262,-500.0,0.00025033,2]
[313789283,1707724297273,-500.0,0.00025033,2]
[313789284,1707724297283,-500.0,0.00025033,2]
[313789285,1707724297293,-500.0,0.00025033,2]
[313789286,1707724297303,-500.0,0.00025033,2]
[313789287,1707724297313,-501.31,0.00025033,2]
[313789288,1707724297323,-500.0,0.00025033,2]
[313789289,1707724297333,-500.0,0.00025033,2]
[313789290,1707724297343,-500.0,0.00025033,2]
[313789291,1707724297352,-500.0,0.00025033,2]
[313789292,1707724297363,-500.0,0.00025033,2]
[313789293,1707724297373,-1225.76,0.00025033,2]
[313789294,1707724297382,-503.01,0.00025033,2]
[313789295,1707724297393,-501.14,0.00025033,2]
[313789296,1707724297404,-500.0,0.00025033,2]
[313789297,1707724297414,-500.0,0.00025033,2]
[313789298,1707724297427,-868.66,0.00025033,2]
[313789299,1707724297437,-500.0,0.00025033,2]
[313789300,1707724297448,-500.0,0.00025033,2]
[313789301,1707724297459,-500.0,0.00025033,2]
[313789302,1707724297469,-1657.54,0.00025033,2]
[313789303,1707724297479,-500.0,0.00025033,2]
[313789304,1707724297489,-500.0,0.00025033,2]
[313789305,1707724297500,-457.16077942,0.00025033,2]
[313789306,1707724297511,-937.0,0.00025033,2]
[313789307,1707724297521,-500.0,0.00025033,2]
[313789308,1707724297536,-500.0,0.00025033,2]
[313789309,1707724297546,-836.61,0.00025033,2]
[313789310,1707724297556,-789.02,0.00025033,2]
[313789311,1707724297565,-500.0,0.00025033,2]
[313789312,1707724297575,-500.0,0.00025033,2]
[313789313,1707724297585,-554.21256496,0.00025033,2]
[313789314,1707724297595,-741.07,0.00025033,2]
[313789315,1707724297605,-702.48,0.00025033,2]
[313789316,1707724297615,-476.86180864,0.00025033,2]
[313789317,1707724297625,-1093.1,0.00025033,2]
[313789318,1707724297635,-500.0,0.00025033,2]
[313789319,1707724297644,-1102.3,0.00025033,2]
[313789320,1707724297655,-500.0,0.00025033,2]
[313789321,1707724297665,-500.0,0.00025033,2]
[313789322,1707724297676,-1010.79,0.00025033,2]
[313789323,1707724297686,-500.0,0.00025033,2]
[313789324,1707724297695,-500.0,0.00025033,2]
[313789325,1707724297708,-593.83572968,0.00025033,2]
[313789326,1707724297718,-1081.23,0.00025033,2]
[313789327,1707724297728,-500.0,0.00025033,2]
[313789328,1707724297737,-858.73,0.00025033,2]
[313789329,1707724297748,-1022.22,0.00025033,2]
[313789330,1707724297757,-968.51,0.00025033,2]
[313789331,1707724297767,-500.0,0.00025033,2]
[313789332,1707724297777,-1029.72,0.00025033,2]
[313789333,1707724297787,-905.03,0.00025033,2]
[313789334,1707724297797,-500.0,0.00025033,2]
[313789335,1707724297807,-500.0,0.00025033,2]
[313789336,1707724297817,-500.0,0.00025033,2]
[313789337,1707724297826,-565.78,0.00025033,2]
[313789338,1707724297836,-758.66,0.00025033,2]
[313789339,1707724297846,-500.0,0.00025033,2]
[313789340,1707724297855,-500.0,0.00025033,2]
[313789341,1707724297865,-500.0,0.00025033,2]
[313789342,1707724297875,-985.25,0.00025033,2]
[313789343,1707724297885,-637.04,0.00025033,2]
[313789344,1707724297895,-1101.79,0.00025033,2]
[313789345,1707724297905,-564.71,0.00025033,2]
[313789346,1707724297915,-501.05,0.00025033,2]
[313789347,1707724297924,-500.0,0.00025033,2]
[313789348,1707724297934,-500.0,0.00025033,2]